[Event "Chess.com Isle of Man Masters"]
[Site "Villa Marina, Douglas, Isle of Man, United Kingdom"]
[Date "2018.10.22"]
[Round "3.1"]
[White "Aronian, Levon"]
[Black "Sevian, Samuel"]
[Result "1/2-1/2"]
[TimeControl "40 moves in 100 minutes, f.b. 20 moves in 50 minutes f.b. 15 minutes with a 30 second increment from move 0"]
[WhiteElo "2780"]
[BlackElo "2634"]

1. e4 {[%clk 01:40:56]} {[%emt 00:00:02]} e6 {[%clk 01:40:49]} {[%emt
00:00:12]} 2. d4 {[%clk 01:41:21]} {[%emt 00:00:05]} d5 {[%clk 01:41:14]}
{[%emt 00:00:05]} 3. Nc3 {[%clk 01:41:46]} {[%emt 00:00:05]} Bb4 {[%clk
01:40:33]} {[%emt 00:01:12]} 4. e5 {[%clk 01:42:09]} {[%emt 00:00:07]} c5
{[%clk 01:38:49]} {[%emt 00:02:14]} 5. a3 {[%clk 01:42:25]} {[%emt 00:00:13]}
Ba5 {[%clk 01:37:58]} {[%emt 00:01:22]} 6. Bd2 {[%clk 01:42:38]} {[%emt
00:00:18]} Nc6 {[%clk 01:37:29]} {[%emt 00:00:58]} 7. Nb5 {[%clk 01:41:14]}
{[%emt 00:01:53]} Nxd4 {[%clk 01:35:46]} {[%emt 00:02:14]} 8. Nxd4 {[%clk
01:40:54]} {[%emt 00:00:49]} cxd4 {[%clk 01:35:57]} {[%emt 00:00:19]} 9. f4
{[%clk 01:41:12]} {[%emt 00:00:12]} Ne7 {[%clk 01:32:41]} {[%emt 00:03:47]} 10.
Bd3 {[%clk 01:37:20]} {[%emt 00:04:21]} Bd7 {[%clk 01:14:42]} {[%emt 00:18:30]}
11. Nf3 {[%clk 01:36:50]} {[%emt 00:00:58]} h6 {[%clk 01:03:48]} {[%emt
00:11:25]} 12. O-O {[%clk 01:29:56]} {[%emt 00:07:24]} Bxd2 {[%clk 00:57:16]}
{[%emt 00:07:02]} 13. Qxd2 {[%clk 01:29:32]} {[%emt 00:00:54]} Qb6 {[%clk
00:57:39]} {[%emt 00:00:07]} 14. Qb4 {[%clk 01:25:45]} {[%emt 00:04:16]} Nc6
{[%clk 00:57:17]} {[%emt 00:00:53]} 15. Qxb6 {[%clk 01:25:52]} {[%emt
00:00:22]} axb6 {[%clk 00:57:44]} {[%emt 00:00:04]} 16. b4 {[%clk 01:11:07]}
{[%emt 00:15:14]} Ra4 {[%clk 00:50:50]} {[%emt 00:07:25]} 17. Bb5 {[%clk
00:50:49]} {[%emt 00:20:48]} Ra7 {[%clk 00:42:32]} {[%emt 00:08:49]} 18. Bd3
{[%clk 00:50:54]} {[%emt 00:00:24]} O-O {[%clk 00:38:56]} {[%emt 00:04:06]} 19.
b5 {[%clk 00:51:17]} {[%emt 00:00:07]} Ne7 {[%clk 00:39:15]} {[%emt 00:00:12]}
20. Nxd4 {[%clk 00:50:28]} {[%emt 00:01:18]} Rfa8 {[%clk 00:39:38]} {[%emt
00:00:07]} 21. Kf2 {[%clk 00:50:14]} {[%emt 00:00:43]} Rxa3 {[%clk 00:39:40]}
{[%emt 00:00:28]} 22. Rxa3 {[%clk 00:49:24]} {[%emt 00:01:19]} Rxa3 {[%clk
00:40:05]} {[%emt 00:00:06]} 23. h4 {[%clk 00:43:14]} {[%emt 00:06:40]} h5
{[%clk 00:34:38]} {[%emt 00:05:58]} 24. Rb1 {[%clk 00:28:29]} {[%emt 00:15:15]}
Kf8 {[%clk 00:28:30]} {[%emt 00:06:38]} 25. Ke2 {[%clk 00:22:37]} {[%emt
00:06:21]} Ke8 {[%clk 00:19:55]} {[%emt 00:09:05]} 26. Kd2 {[%clk 00:22:35]}
{[%emt 00:00:32]} Ra4 {[%clk 00:19:49]} {[%emt 00:00:36]} 27. Kc3 {[%clk
00:20:41]} {[%emt 00:02:24]} Ng8 {[%clk 00:17:45]} {[%emt 00:02:32]} 28. Rb4
{[%clk 00:17:34]} {[%emt 00:03:38]} Ra8 {[%clk 00:08:37]} {[%emt 00:09:39]} 29.
Kb2 {[%clk 00:17:13]} {[%emt 00:00:51]} Ne7 {[%clk 00:08:41]} {[%emt 00:00:26]}
30. Be2 {[%clk 00:15:45]} {[%emt 00:01:58]} g6 {[%clk 00:09:04]} {[%emt
00:00:07]} 31. Bd3 {[%clk 00:16:10]} {[%emt 00:00:04]} 1/2-1/2

[Event "Chess.com Isle of Man Masters"]
[Site "Villa Marina, Douglas, Isle of Man, United Kingdom"]
[Date "2018.10.22"]
[Round "3.2"]
[White "Vachier-Lagrave, Maxime"]
[Black "Tari, Aryan"]
[Result "1-0"]
[TimeControl "40 moves in 100 minutes, f.b. 20 moves in 50 minutes f.b. 15 minutes with a 30 second increment from move 0"]
[WhiteElo "2780"]
[BlackElo "2618"]

1. d4 {[%clk 01:40:57]} {[%emt 00:00:01]} Nf6 {[%clk 01:34:45]} {[%emt
00:06:14]} 2. c4 {[%clk 01:41:24]} {[%emt 00:00:05]} g6 {[%clk 01:35:09]}
{[%emt 00:00:06]} 3. g3 {[%clk 01:41:51]} {[%emt 00:00:03]} c6 {[%clk
01:34:33]} {[%emt 00:01:07]} 4. Bg2 {[%clk 01:42:16]} {[%emt 00:00:05]} d5
{[%clk 01:34:57]} {[%emt 00:00:05]} 5. Qa4 {[%clk 01:42:44]} {[%emt 00:00:03]}
Bg7 {[%clk 01:32:31]} {[%emt 00:02:56]} 6. cxd5 {[%clk 01:42:55]} {[%emt
00:00:19]} O-O {[%clk 01:32:29]} {[%emt 00:00:32]} 7. e4 {[%clk 01:43:07]}
{[%emt 00:00:18]} cxd5 {[%clk 01:30:05]} {[%emt 00:02:54]} 8. e5 {[%clk
01:43:21]} {[%emt 00:00:16]} Nfd7 {[%clk 01:28:51]} {[%emt 00:01:44]} 9. Nc3
{[%clk 01:43:43]} {[%emt 00:00:09]} Nb6 {[%clk 01:26:25]} {[%emt 00:02:56]} 10.
Qd1 {[%clk 01:44:07]} {[%emt 00:00:06]} Nc6 {[%clk 01:25:33]} {[%emt 00:01:22]}
11. Nge2 {[%clk 01:44:15]} {[%emt 00:00:22]} f6 {[%clk 00:58:56]} {[%emt
00:27:07]} 12. exf6 {[%clk 01:44:31]} {[%emt 00:00:14]} exf6 {[%clk 00:56:16]}
{[%emt 00:03:11]} 13. O-O {[%clk 01:43:24]} {[%emt 00:01:36]} Be6 {[%clk
00:54:28]} {[%emt 00:02:17]} 14. b3 {[%clk 01:41:44]} {[%emt 00:02:10]} Re8
{[%clk 00:50:33]} {[%emt 00:04:26]} 15. Ba3 {[%clk 01:41:07]} {[%emt 00:01:07]}
Bf7 {[%clk 00:42:42]} {[%emt 00:08:21]} 16. Qd2 {[%clk 01:38:52]} {[%emt
00:02:45]} Bf8 {[%clk 00:39:12]} {[%emt 00:04:01]} 17. Bc5 {[%clk 01:29:57]}
{[%emt 00:09:25]} Nd7 {[%clk 00:33:44]} {[%emt 00:05:58]} 18. Bxf8 {[%clk
01:30:15]} {[%emt 00:00:12]} Nxf8 {[%clk 00:33:53]} {[%emt 00:00:21]} 19. Nf4
{[%clk 01:30:34]} {[%emt 00:00:11]} Ne6 {[%clk 00:25:15]} {[%emt 00:09:09]} 20.
Nxe6 {[%clk 01:30:15]} {[%emt 00:00:49]} Bxe6 {[%clk 00:24:59]} {[%emt
00:00:46]} 21. Rfe1 {[%clk 01:30:36]} {[%emt 00:00:08]} Bf7 {[%clk 00:18:20]}
{[%emt 00:07:10]} 22. Rxe8+ {[%clk 01:29:59]} {[%emt 00:01:07]} Qxe8 {[%clk
00:18:49]} {[%emt 00:00:01]} 23. Nxd5 {[%clk 01:29:19]} {[%emt 00:01:10]} Qd8
{[%clk 00:19:10]} {[%emt 00:00:08]} 24. Ne3 {[%clk 01:27:33]} {[%emt 00:02:16]}
Qxd4 {[%clk 00:14:14]} {[%emt 00:05:26]} 25. Qxd4 {[%clk 01:27:56]} {[%emt
00:00:07]} Nxd4 {[%clk 00:14:39]} {[%emt 00:00:05]} 26. Bxb7 {[%clk 01:28:17]}
{[%emt 00:00:09]} Rd8 {[%clk 00:14:54]} {[%emt 00:00:15]} 27. Rd1 {[%clk
01:26:23]} {[%emt 00:02:24]} Rd7 {[%clk 00:10:08]} {[%emt 00:05:16]} 28. Bd5
{[%clk 01:22:44]} {[%emt 00:04:08]} Ne6 {[%clk 00:06:08]} {[%emt 00:04:31]} 29.
Kf1 {[%clk 01:22:23]} {[%emt 00:00:51]} Kf8 {[%clk 00:06:17]} {[%emt 00:00:22]}
30. Bxe6 {[%clk 01:20:53]} {[%emt 00:01:59]} Rxd1+ {[%clk 00:06:35]} {[%emt
00:00:12]} 31. Nxd1 {[%clk 01:21:20]} {[%emt 00:00:03]} Bxe6 {[%clk 00:07:00]}
{[%emt 00:00:05]} 32. Ke2 {[%clk 01:21:46]} {[%emt 00:00:04]} Ke7 {[%clk
00:07:05]} {[%emt 00:00:25]} 33. Kd3 {[%clk 01:22:10]} {[%emt 00:00:06]} Kd6
{[%clk 00:06:11]} {[%emt 00:01:24]} 34. Kd4 {[%clk 01:22:35]} {[%emt 00:00:05]}
g5 {[%clk 00:05:36]} {[%emt 00:01:05]} 35. Nc3 {[%clk 01:22:53]} {[%emt
00:00:12]} Bf5 {[%clk 00:04:36]} {[%emt 00:01:29]} 36. b4 {[%clk 01:22:40]}
{[%emt 00:00:43]} Kc6 {[%clk 00:04:09]} {[%emt 00:00:57]} 37. Ne4 {[%clk
01:21:25]} {[%emt 00:01:45]} Be6 {[%clk 00:01:33]} {[%emt 00:03:05]} 38. Nxf6
{[%clk 01:20:08]} {[%emt 00:01:48]} Bxa2 {[%clk 00:01:40]} {[%emt 00:00:23]} 39.
Nxh7 {[%clk 01:20:31]} {[%emt 00:00:06]} g4 {[%clk 00:02:05]} {[%emt 00:00:04]}
40. Ng5 {[%clk 01:20:56]} {[%emt 00:00:05]} 1-0

[Event "Chess.com Isle of Man Masters"]
[Site "Villa Marina, Douglas, Isle of Man, United Kingdom"]
[Date "2018.10.22"]
[Round "3.3"]
[White "Donchenko, Alexander"]
[Black "Wang, Hao"]
[Result "0-1"]
[TimeControl "40 moves in 100 minutes, f.b. 20 moves in 50 minutes f.b. 15 minutes with a 30 second increment from move 0"]
[WhiteElo "2610"]
[BlackElo "2722"]

1. Nf3 {[%clk 01:40:58]} {[%emt 00:00:02]} d5 {[%clk 01:38:26]} {[%emt
00:02:34]} 2. g3 {[%clk 01:41:14]} {[%emt 00:00:14]} g6 {[%clk 01:38:25]}
{[%emt 00:00:31]} 3. Bg2 {[%clk 01:41:31]} {[%emt 00:00:13]} Bg7 {[%clk
01:38:49]} {[%emt 00:00:06]} 4. d4 {[%clk 01:41:45]} {[%emt 00:00:16]} Nf6
{[%clk 01:38:49]} {[%emt 00:00:30]} 5. O-O {[%clk 01:41:53]} {[%emt 00:00:23]}
O-O {[%clk 01:39:10]} {[%emt 00:00:08]} 6. c4 {[%clk 01:42:09]} {[%emt
00:00:15]} c6 {[%clk 01:39:34]} {[%emt 00:00:06]} 7. b3 {[%clk 01:42:06]}
{[%emt 00:00:34]} dxc4 {[%clk 01:39:30]} {[%emt 00:00:34]} 8. bxc4 {[%clk
01:42:27]} {[%emt 00:00:08]} c5 {[%clk 01:39:57]} {[%emt 00:00:03]} 9. Bb2
{[%clk 01:41:53]} {[%emt 00:01:04]} cxd4 {[%clk 01:40:20]} {[%emt 00:00:07]} 10.
Nxd4 {[%clk 01:42:12]} {[%emt 00:00:12]} Qb6 {[%clk 01:40:46]} {[%emt
00:00:04]} 11. Qc1 {[%clk 01:42:15]} {[%emt 00:00:27]} Bd7 {[%clk 01:41:11]}
{[%emt 00:00:05]} 12. Nd2 {[%clk 01:41:48]} {[%emt 00:00:56]} Nc6 {[%clk
01:41:21]} {[%emt 00:00:20]} 13. Nc2 {[%clk 01:41:43]} {[%emt 00:00:34]} Rac8
{[%clk 01:36:56]} {[%emt 00:04:56]} 14. Rb1 {[%clk 01:41:19]} {[%emt 00:00:54]}
Qc7 {[%clk 01:27:51]} {[%emt 00:09:36]} 15. Bc3 {[%clk 01:40:18]} {[%emt
00:01:30]} b6 {[%clk 01:27:20]} {[%emt 00:01:01]} 16. Qb2 {[%clk 01:34:15]}
{[%emt 00:06:33]} Ne8 {[%clk 01:20:40]} {[%emt 00:07:10]} 17. Ne3 {[%clk
01:27:46]} {[%emt 00:06:59]} Bxc3 {[%clk 01:20:09]} {[%emt 00:01:01]} 18. Qxc3
{[%clk 01:28:10]} {[%emt 00:00:06]} Nf6 {[%clk 01:19:25]} {[%emt 00:01:13]} 19.
Rfc1 {[%clk 01:23:31]} {[%emt 00:05:09]} Qe5 {[%clk 01:10:13]} {[%emt
00:09:42]} 20. Qxe5 {[%clk 01:15:38]} {[%emt 00:08:23]} Nxe5 {[%clk 01:09:54]}
{[%emt 00:00:48]} 21. c5 {[%clk 01:15:59]} {[%emt 00:00:09]} Rxc5 {[%clk
00:37:32]} {[%emt 00:32:52]} 22. Rxc5 {[%clk 01:15:49]} {[%emt 00:00:40]} bxc5
{[%clk 00:37:58]} {[%emt 00:00:04]} 23. Rb7 {[%clk 01:04:46]} {[%emt 00:11:33]}
Rd8 {[%clk 00:37:34]} {[%emt 00:00:54]} 24. f4 {[%clk 00:57:56]} {[%emt
00:07:20]} Neg4 {[%clk 00:30:02]} {[%emt 00:08:02]} 25. Nef1 {[%clk 00:47:17]}
{[%emt 00:11:09]} Be6 {[%clk 00:29:11]} {[%emt 00:01:20]} 26. Rxa7 {[%clk
00:43:27]} {[%emt 00:04:21]} Ne3 {[%clk 00:29:29]} {[%emt 00:00:11]} 27. Rc7
{[%clk 00:33:39]} {[%emt 00:10:18]} Nxg2 {[%clk 00:26:37]} {[%emt 00:03:22]} 28.
Kxg2 {[%clk 00:33:50]} {[%emt 00:00:19]} Ra8 {[%clk 00:27:04]} {[%emt
00:00:03]} 29. Rxc5 {[%clk 00:31:50]} {[%emt 00:02:31]} Rxa2 {[%clk 00:27:00]}
{[%emt 00:00:33]} 30. h3 {[%clk 00:31:41]} {[%emt 00:00:39]} h5 {[%clk
00:26:40]} {[%emt 00:00:50]} 31. Rc3 {[%clk 00:30:17]} {[%emt 00:01:54]} Nd5
{[%clk 00:18:59]} {[%emt 00:08:11]} 32. Rf3 {[%clk 00:21:30]} {[%emt 00:09:17]}
Rc2 {[%clk 00:11:32]} {[%emt 00:07:57]} 33. Rf2 {[%clk 00:18:17]} {[%emt
00:03:43]} Nc3 {[%clk 00:11:38]} {[%emt 00:00:24]} 34. Kh2 {[%clk 00:18:16]}
{[%emt 00:00:32]} Bd5 {[%clk 00:06:21]} {[%emt 00:05:47]} 35. e4 {[%clk
00:15:04]} {[%emt 00:03:42]} Bc6 {[%clk 00:06:47]} {[%emt 00:00:03]} 36. g4
{[%clk 00:13:23]} {[%emt 00:02:11]} h4 {[%clk 00:05:48]} {[%emt 00:01:29]} 37.
Ne3 {[%clk 00:13:06]} {[%emt 00:00:47]} Ra2 {[%clk 00:04:34]} {[%emt 00:01:43]}
38. g5 {[%clk 00:11:10]} {[%emt 00:02:27]} Nb1 {[%clk 00:02:16]} {[%emt
00:02:48]} 39. Nef1 {[%clk 00:09:30]} {[%emt 00:02:10]} Nc3 {[%clk 00:02:19]}
{[%emt 00:00:27]} 40. Ne3 {[%clk 00:09:17]} {[%emt 00:00:43]} Nb1 {[%clk
00:00:46]} {[%emt 00:02:03]} 41. Nef1 {[%clk 00:09:35]} {[%emt 00:00:12]} Bb5
{[%clk 00:00:52]} {[%emt 00:00:24]} 42. Kg2 {[%clk 00:48:20]} {[%emt 00:11:45]}
Nc3 {[%clk 00:39:02]} {[%emt 00:12:20]} 43. Ne3 {[%clk 00:35:00]} {[%emt
00:13:50]} Be2 {[%clk 00:25:59]} {[%emt 00:13:32]} 44. Nef1 {[%clk 00:34:32]}
{[%emt 00:00:59]} Bd3 {[%clk 00:13:58]} {[%emt 00:12:31]} 45. Ne3 {[%clk
00:26:51]} {[%emt 00:08:11]} Nxe4 {[%clk 00:10:14]} {[%emt 00:04:14]} 46. Nxe4
{[%clk 00:27:06]} {[%emt 00:00:15]} Bxe4+ {[%clk 00:10:42]} {[%emt 00:00:02]}
47. Kg1 {[%clk 00:27:29]} {[%emt 00:00:07]} Ra4 {[%clk 00:08:20]} {[%emt
00:02:52]} 48. Rb2 {[%clk 00:16:33]} {[%emt 00:11:27]} Kg7 {[%clk 00:05:45]}
{[%emt 00:03:04]} 49. Rb5 {[%clk 00:14:04]} {[%emt 00:02:59]} Ra1+ {[%clk
00:04:42]} {[%emt 00:01:33]} 50. Kf2 {[%clk 00:14:31]} {[%emt 00:00:02]} Ra2+
{[%clk 00:05:06]} {[%emt 00:00:06]} 51. Kg1 {[%clk 00:14:50]} {[%emt 00:00:11]}
Re2 {[%clk 00:05:24]} {[%emt 00:00:12]} 52. Rb3 {[%clk 00:14:58]} {[%emt
00:00:23]} Ra2 {[%clk 00:03:57]} {[%emt 00:01:57]} 53. Rb4 {[%clk 00:14:56]}
{[%emt 00:00:32]} Bf3 {[%clk 00:03:14]} {[%emt 00:01:13]} 54. Rd4 {[%clk
00:10:41]} {[%emt 00:04:46]} Re2 {[%clk 00:03:10]} {[%emt 00:00:34]} 55. Rd3
{[%clk 00:10:14]} {[%emt 00:00:58]} Be4 {[%clk 00:03:17]} {[%emt 00:00:23]} 56.
Rc3 {[%clk 00:10:19]} {[%emt 00:00:25]} Bb7 {[%clk 00:02:14]} {[%emt 00:01:33]}
57. Rb3 {[%clk 00:09:00]} {[%emt 00:01:49]} Bc6 {[%clk 00:02:38]} {[%emt
00:00:06]} 58. Rc3 {[%clk 00:09:13]} {[%emt 00:00:17]} Be4 {[%clk 00:03:02]}
{[%emt 00:00:06]} 59. Rb3 {[%clk 00:07:42]} {[%emt 00:02:01]} Re1+ {[%clk
00:03:13]} {[%emt 00:00:19]} 60. Kf2 {[%clk 00:07:48]} {[%emt 00:00:24]} Rh1
{[%clk 00:03:37]} {[%emt 00:00:06]} 61. Rb4 {[%clk 00:05:03]} {[%emt 00:03:16]}
Bc6 {[%clk 00:02:28]} {[%emt 00:01:38]} 62. Rb3 {[%clk 00:03:54]} {[%emt
00:01:40]} Bd7 {[%clk 00:00:32]} {[%emt 00:02:26]} 63. Ng4 {[%clk 00:00:55]}
{[%emt 00:03:28]} Bxg4 {[%clk 00:13:14]} {[%emt 00:02:49]} 64. hxg4 {[%clk
00:16:20]} {[%emt 00:00:05]} Rh2+ {[%clk 00:13:40]} {[%emt 00:00:04]} 65. Kg1
{[%clk 00:16:36]} {[%emt 00:00:14]} Re2 {[%clk 00:13:32]} {[%emt 00:00:38]} 66.
Rb4 {[%clk 00:14:35]} {[%emt 00:02:32]} h3 {[%clk 00:11:32]} {[%emt 00:02:30]}
67. Kh1 {[%clk 00:14:43]} {[%emt 00:00:22]} Rg2 {[%clk 00:11:25]} {[%emt
00:00:36]} 68. Re4 {[%clk 00:13:02]} {[%emt 00:02:12]} Kf8 {[%clk 00:09:58]}
{[%emt 00:01:57]} 69. f5 {[%clk 00:12:32]} {[%emt 00:01:00]} gxf5 {[%clk
00:10:21]} {[%emt 00:00:07]} 70. gxf5 {[%clk 00:12:59]} {[%emt 00:00:03]} Rxg5
{[%clk 00:10:45]} {[%emt 00:00:06]} 71. Rf4 {[%clk 00:13:26]} {[%emt 00:00:03]}
Kg7 {[%clk 00:06:56]} {[%emt 00:04:18]} 72. f6+ {[%clk 00:13:43]} {[%emt
00:00:13]} exf6 {[%clk 00:07:23]} {[%emt 00:00:03]} 73. Kh2 {[%clk 00:14:09]}
{[%emt 00:00:04]} Rh5 {[%clk 00:07:48]} {[%emt 00:00:04]} 74. Rg4+ {[%clk
00:14:28]} {[%emt 00:00:11]} Kf8 {[%clk 00:08:13]} {[%emt 00:00:05]} 75. Re4
{[%clk 00:14:51]} {[%emt 00:00:08]} f5 {[%clk 00:08:39]} {[%emt 00:00:04]} 76.
Re5 {[%clk 00:15:09]} {[%emt 00:00:12]} Kg7 {[%clk 00:09:03]} {[%emt 00:00:06]}
77. Ra5 {[%clk 00:15:31]} {[%emt 00:00:09]} Kg6 {[%clk 00:09:28]} {[%emt
00:00:05]} 78. Ra4 {[%clk 00:15:49]} {[%emt 00:00:12]} Kg5 {[%clk 00:09:53]}
{[%emt 00:00:05]} 79. Ra5 {[%clk 00:14:08]} {[%emt 00:02:10]} Kg4 {[%clk
00:09:58]} {[%emt 00:00:25]} 80. Ra8 {[%clk 00:14:22]} {[%emt 00:00:16]} f4
{[%clk 00:08:52]} {[%emt 00:01:35]} 81. Rg8+ {[%clk 00:12:22]} {[%emt
00:02:29]} Rg5 {[%clk 00:08:48]} {[%emt 00:00:35]} 82. Rf8 {[%clk 00:12:46]}
{[%emt 00:00:07]} f3 {[%clk 00:05:46]} {[%emt 00:03:31]} 83. Rxf7 {[%clk
00:12:23]} {[%emt 00:00:52]} Rf5 {[%clk 00:06:09]} {[%emt 00:00:08]} 84. Rg7+
{[%clk 00:12:34]} {[%emt 00:00:19]} Kh5 {[%clk 00:06:03]} {[%emt 00:00:36]} 85.
Rg1 {[%clk 00:10:52]} {[%emt 00:02:12]} f2 {[%clk 00:06:28]} {[%emt 00:00:05]}
86. Rf1 {[%clk 00:11:17]} {[%emt 00:00:05]} Rf3 {[%clk 00:06:53]} {[%emt
00:00:05]} 87. Kh1 {[%clk 00:11:41]} {[%emt 00:00:06]} Kg4 {[%clk 00:07:19]}
{[%emt 00:00:04]} 88. Kh2 {[%clk 00:12:06]} {[%emt 00:00:06]} Kf4 {[%clk
00:07:45]} {[%emt 00:00:03]} 89. Kh1 {[%clk 00:12:09]} {[%emt 00:00:27]} Kg3
{[%clk 00:08:04]} {[%emt 00:00:07]} 0-1

[Event "Chess.com Isle of Man Masters"]
[Site "Villa Marina, Douglas, Isle of Man, United Kingdom"]
[Date "2018.10.22"]
[Round "3.4"]
[White "Naiditsch, Arkadij"]
[Black "Jumabayev, Rinat"]
[Result "1-0"]
[TimeControl "40 moves in 100 minutes, f.b. 20 moves in 50 minutes f.b. 15 minutes with a 30 second increment from move 0"]
[WhiteElo "2721"]
[BlackElo "2605"]

1. e4 {[%clk 01:40:53]} {[%emt 00:00:06]} e5 {[%clk 01:40:53]} {[%emt
00:00:07]} 2. Nf3 {[%clk 01:41:16]} {[%emt 00:00:07]} Nc6 {[%clk 01:41:21]}
{[%emt 00:00:03]} 3. Bb5 {[%clk 01:41:30]} {[%emt 00:00:15]} a6 {[%clk
01:41:46]} {[%emt 00:00:05]} 4. Ba4 {[%clk 01:40:50]} {[%emt 00:01:10]} Nf6
{[%clk 01:42:11]} {[%emt 00:00:05]} 5. d3 {[%clk 01:41:04]} {[%emt 00:00:16]}
d6 {[%clk 01:42:37]} {[%emt 00:00:05]} 6. c3 {[%clk 01:40:37]} {[%emt
00:00:57]} Be7 {[%clk 01:43:00]} {[%emt 00:00:07]} 7. Nbd2 {[%clk 01:38:48]}
{[%emt 00:02:18]} O-O {[%clk 01:42:38]} {[%emt 00:00:53]} 8. O-O {[%clk
01:38:56]} {[%emt 00:00:21]} Re8 {[%clk 01:42:28]} {[%emt 00:00:40]} 9. Re1
{[%clk 01:38:39]} {[%emt 00:00:47]} Bf8 {[%clk 01:39:01]} {[%emt 00:03:57]} 10.
Nf1 {[%clk 01:37:34]} {[%emt 00:01:35]} h6 {[%clk 01:39:13]} {[%emt 00:00:20]}
11. a3 {[%clk 01:30:28]} {[%emt 00:07:36]} b5 {[%clk 01:19:45]} {[%emt
00:19:58]} 12. Bb3 {[%clk 01:29:37]} {[%emt 00:01:20]} Bd7 {[%clk 01:20:09]}
{[%emt 00:00:07]} 13. Ng3 {[%clk 01:22:27]} {[%emt 00:07:39]} Na5 {[%clk
01:14:05]} {[%emt 00:06:35]} 14. Ba2 {[%clk 01:21:59]} {[%emt 00:00:57]} c5
{[%clk 01:14:03]} {[%emt 00:00:32]} 15. b4 {[%clk 01:15:08]} {[%emt 00:07:21]}
Nc6 {[%clk 01:14:21]} {[%emt 00:00:12]} 16. Bb2 {[%clk 01:09:15]} {[%emt
00:06:22]} Be6 {[%clk 01:00:32]} {[%emt 00:14:19]} 17. Bxe6 {[%clk 01:05:44]}
{[%emt 00:04:01]} fxe6 {[%clk 01:00:47]} {[%emt 00:00:15]} 18. d4 {[%clk
00:56:28]} {[%emt 00:09:46]} c4 {[%clk 00:59:50]} {[%emt 00:01:28]} 19. a4
{[%clk 00:51:10]} {[%emt 00:05:47]} Qb6 {[%clk 00:48:05]} {[%emt 00:12:15]} 20.
Bc1 {[%clk 00:46:02]} {[%emt 00:05:38]} Rad8 {[%clk 00:34:56]} {[%emt
00:13:39]} 21. Be3 {[%clk 00:44:21]} {[%emt 00:02:11]} Qb7 {[%clk 00:35:15]}
{[%emt 00:00:11]} 22. Re2 {[%clk 00:34:27]} {[%emt 00:10:24]} exd4 {[%clk
00:22:54]} {[%emt 00:12:51]} 23. Nxd4 {[%clk 00:34:16]} {[%emt 00:00:41]} Ne5
{[%clk 00:22:51]} {[%emt 00:00:33]} 24. axb5 {[%clk 00:31:44]} {[%emt
00:03:02]} axb5 {[%clk 00:23:17]} {[%emt 00:00:04]} 25. Rea2 {[%clk 00:21:59]}
{[%emt 00:10:14]} Nfg4 {[%clk 00:14:25]} {[%emt 00:09:22]} 26. Bd2 {[%clk
00:17:21]} {[%emt 00:05:08]} Nf6 {[%clk 00:09:01]} {[%emt 00:05:54]} 27. Ra7
{[%clk 00:17:31]} {[%emt 00:00:20]} Qb8 {[%clk 00:08:19]} {[%emt 00:01:12]} 28.
f4 {[%clk 00:15:15]} {[%emt 00:02:45]} Nd3 {[%clk 00:08:43]} {[%emt 00:00:07]}
29. Nh5 {[%clk 00:15:18]} {[%emt 00:00:27]} Be7 {[%clk 00:05:32]} {[%emt
00:03:41]} 30. R1a6 {[%clk 00:15:31]} {[%emt 00:00:16]} Rc8 {[%clk 00:03:51]}
{[%emt 00:02:11]} 31. Nxe6 {[%clk 00:13:09]} {[%emt 00:02:53]} Rc6 {[%clk
00:03:54]} {[%emt 00:00:27]} 32. Nexg7 {[%clk 00:11:03]} {[%emt 00:02:35]} Rxa6
{[%clk 00:04:19]} {[%emt 00:00:06]} 33. Rxa6 {[%clk 00:11:24]} {[%emt
00:00:08]} Rf8 {[%clk 00:04:04]} {[%emt 00:00:45]} 34. Nf5 {[%clk 00:07:33]}
{[%emt 00:04:21]} Qb7 {[%clk 00:04:29]} {[%emt 00:00:05]} 35. Nxf6+ {[%clk
00:05:29]} {[%emt 00:02:34]} Bxf6 {[%clk 00:04:55]} {[%emt 00:00:05]} 36. Rxd6
{[%clk 00:05:41]} {[%emt 00:00:18]} Kh8 {[%clk 00:03:44]} {[%emt 00:01:41]} 37.
Be3 {[%clk 00:04:46]} {[%emt 00:01:24]} Qxe4 {[%clk 00:02:43]} {[%emt
00:01:30]} 38. Qh5 {[%clk 00:04:34]} {[%emt 00:00:42]} 1-0

[Event "Chess.com Isle of Man Masters"]
[Site "Villa Marina, Douglas, Isle of Man, United Kingdom"]
[Date "2018.10.22"]
[Round "3.5"]
[White "Vaibhav, Suri"]
[Black "Vidit, Santosh Gujrathi"]
[Result "1/2-1/2"]
[TimeControl "40 moves in 100 minutes, f.b. 20 moves in 50 minutes f.b. 15 minutes with a 30 second increment from move 0"]
[WhiteElo "2597"]
[BlackElo "2711"]

1. d4 {[%clk 01:40:44]} {[%emt 00:00:15]} Nf6 {[%clk 01:40:31]} {[%emt
00:00:29]} 2. c4 {[%clk 01:41:08]} {[%emt 00:00:06]} g6 {[%clk 01:40:46]}
{[%emt 00:00:14]} 3. g3 {[%clk 01:41:33]} {[%emt 00:00:05]} Bg7 {[%clk
01:40:57]} {[%emt 00:00:19]} 4. Bg2 {[%clk 01:41:57]} {[%emt 00:00:07]} d5
{[%clk 01:41:19]} {[%emt 00:00:08]} 5. cxd5 {[%clk 01:42:20]} {[%emt 00:00:07]}
Nxd5 {[%clk 01:41:44]} {[%emt 00:00:05]} 6. Nf3 {[%clk 01:42:33]} {[%emt
00:00:17]} O-O {[%clk 01:41:49]} {[%emt 00:00:25]} 7. O-O {[%clk 01:42:42]}
{[%emt 00:00:21]} Nc6 {[%clk 01:42:09]} {[%emt 00:00:09]} 8. e3 {[%clk
01:32:50]} {[%emt 00:10:23]} Re8 {[%clk 01:42:09]} {[%emt 00:00:30]} 9. Nc3
{[%clk 01:32:26]} {[%emt 00:00:54]} Nxc3 {[%clk 01:42:07]} {[%emt 00:00:33]} 10.
bxc3 {[%clk 01:32:51]} {[%emt 00:00:05]} Na5 {[%clk 01:42:14]} {[%emt
00:00:22]} 11. Nd2 {[%clk 01:28:45]} {[%emt 00:04:36]} e5 {[%clk 01:41:35]}
{[%emt 00:01:09]} 12. Ba3 {[%clk 01:28:30]} {[%emt 00:00:45]} Bd7 {[%clk
01:41:14]} {[%emt 00:00:51]} 13. Bb4 {[%clk 01:13:48]} {[%emt 00:15:12]} Nc6
{[%clk 01:41:39]} {[%emt 00:00:05]} 14. Ba3 {[%clk 01:14:15]} {[%emt 00:00:04]}
Na5 {[%clk 01:41:58]} {[%emt 00:00:11]} 15. Bb4 {[%clk 01:09:34]} {[%emt
00:05:11]} Nc6 {[%clk 01:42:21]} {[%emt 00:00:06]} 16. Ba3 {[%clk 01:10:00]}
{[%emt 00:00:04]} Na5 {[%clk 01:42:43]} {[%emt 00:00:08]} 1/2-1/2